Cogmind - Beta 17 @@@ ROGUE MODE // 2026.06.27 @ 23:12:31 Player: mintimati Result: Destroyed by Y-54 Guardian with Gatling Laser Performance ------------- Evolutions (4) 2000 Regions Visited (8) 1600 Robots Destroyed (74) 370 Value Destroyed (2454) 2454 Prototype IDs (30) 600 Alien Tech Used (0) 0 Bonus (-33) -33 TOTAL SCORE: 6991 Bonus ------- Friendly Fire -33 Cogmind --------- Core Integrity 0/850 Matter 290/300 Energy 100/100 System Corruption 4% Temperature Cool (6) Movement Core (50) Location -6/Factory Parts ------- > --- POWER (2) -------- (None) > --- PROPULSION (4) --- (None) > --- UTILITY (5) ------ Self-contained Transmogrifier > --- WEAPON (4) ------- (None) > --- INVENTORY (5) ---- Angular Momentum Engine Improved Titanium Leg Gravmag System Propulsion Shielding Heavy Machine Gun Peak State ------------ > --- POWER ------------ Reinforced Deuterium Engine Cooled Deuterium Engine > --- PROPULSION ------- Carbon-fiber Leg VSS Leg Improved Titanium Leg Armored Leg > --- UTILITY ---------- Advanced Heat Sink Makeshift Salvage Targeting Computer Makeshift Utility Shielding Improved System Restoration Module Self-contained Transmogrifier > --- WEAPON ----------- High-powered Shock Rifle Cooled Pulse Rifle Heavy Gatling Laser Magnetic Acceleration Cannon > --- INVENTORY -------- Angular Momentum Engine Carbon-fiber Leg Target Analyzer Gatling Laser [Rating: 74] Favorites ----------- Power Cooled Ion Engine Engine Cooled Ion Engine Power Core Micro Nuclear Core Propulsion Light Treads Treads Light Treads Leg Carbon-fiber Leg Wheel Wheel Hover Unit Airjet Utility Self-contained Transmogrifier Device Self-contained Transmogrifier Storage Small Storage Unit Processor Advanced Terrain Scan Processor Hackware Makeshift Hacking Suite Protection Improved Utility Shielding Weapon High-powered Shock Rifle Energy Gun High-powered Shock Rifle Energy Cannon Long-range Proton Cannon Ballistic Gun Barrage Gun Ballistic Cannon Magnetic Acceleration Cannon Launcher Rocket Array Special Weapon Multitool Impact Weapon Thunder Hammer Piercing Weapon Makeshift Spear Build | -11 -10 -10 -10 -8 -7 -7 -7 -6 ------- Run | Yrd Mat Min Sub Mat Fac Low Low Fac Slots Evolved 8 | . . . . 4 2 . . 2 Power 1 | . . . . . . . . 1 Propulsion 2 | . . . . 2 . . . . Utility 3 | . . . . 2 1 . . . Weapon 2 | . . . . . 1 . . 1 Parts Attached 64 | 6 3 . 13 13 4 1 3 21 Power 10 | 1 . . 3 3 . . . 3 Engine 10 | 1 . . 3 3 . . . 3 Core . | . . . . . . . . . Reactor . | . . . . . . . . . Propulsion 17 | 2 1 . 4 2 1 . 1 6 Treads 5 | . . . 1 2 1 . 1 . Leg 5 | . . . . . . . . 5 Wheel 6 | 2 1 . 3 . . . . . Hover 1 | . . . . . . . . 1 Flight . | . . . . . . . . . Utility 17 | 1 2 . 2 4 1 1 . 6 Device 11 | . 1 . 1 4 . 1 . 4 Storage 1 | 1 . . . . . . . . Processor 3 | . 1 . . . 1 . . 1 Hackware . | . . . . . . . . . Protection 2 | . . . 1 . . . . 1 Artifact . | . . . . . . . . . Weapon 20 | 2 . . 4 4 2 . 2 6 Energy Gun 10 | 2 . . . 2 2 . 1 3 Energy Cannon 1 | . . . . . . . 1 . Ballistic Gun 4 | . . . 2 . . . . 2 Ballistic Cannon 1 | . . . . . . . . 1 Launcher 2 | . . . . 2 . . . . Special Weapon 2 | . . . 2 . . . . . Impact Weapon . | . . . . . . . . . Slashing Weapon . | . . . . . . . . . Piercing Weapon . | . . . . . . . . . Special Melee Weapon . | . . . . . . . . . Unidentified Prototypes 5 | . . . 1 2 1 . . 1 Corrupted Parts 6 | . . . 3 . 1 . . 2 System Corruption 17 | . . . 12 . 3 . . 2 Parts Lost 34 | . . . 9 4 2 4 1 14 Power 6 | . . . 2 2 . . . 2 Propulsion 10 | . . . 3 1 . 2 1 3 Utility 3 | . . . . . 1 . . 2 Weapon 15 | . . . 4 1 1 2 . 7 Highest Loss Streak 12 | . . . 3 3 1 1 1 12 To Critical Strikes 2 | . . . . . . . . 2 Average Backups 3 | 1 4 4 2 4 4 4 4 2 Power . | . . . . 1 . 1 1 . Propulsion . | . . 1 . . . . 1 . Utility . | . 1 1 1 . 1 . . 1 Weapon 1 | . 2 2 . 2 2 2 2 . Tool/Special . | . . . . . . . . . Unused Backups 19 | . 1 . . 4 4 . 4 6 Power 5 | . . . . 2 . . 2 1 Propulsion 4 | . . . . 1 . . 1 2 Utility 6 | . 1 . . 1 2 . . 2 Weapon 4 | . . . . . 2 . 1 1 Tool/Special . | . . . . . . . . . Average Slot Usage (%) 83 | . 71 85 85 82 82 90 71 78 Engine 7 | . 14 14 12 7 7 2 3 9 Core 1 | . . . . . . 4 3 . Treads 13 | . . . 7 20 24 23 10 2 Leg 2 | . . . 1 . . . . 15 Wheel 3 | . 27 28 8 1 . . . . Hover 1 | . . . 4 . . . . . Device 15 | . 7 14 13 19 20 20 8 8 Processor 7 | . 8 14 5 . . 12 19 8 Hackware 1 | . . . 5 3 . . . . Protection 5 | . . . . 11 13 2 2 8 Energy Gun 12 | . 13 14 3 15 8 15 18 17 Energy Cannon 1 | . . . 3 . . 2 2 . Ballistic Gun 2 | . . . 10 . . . . . Launcher 1 | . . . . 1 6 1 . . Peak Build Rating 74 | 4 8 8 32 47 47 55 53 74 Average Rating 38 | 3 6 8 21 39 42 50 49 56 On Entrance 25 | . 4 8 8 32 38 45 47 50 Avg Prop Armor Cover (%) 7 | 12 7 8 7 2 . 6 6 5 Naked Turns . | . . . . . . . . . Heaviest Build 58 | 5 6 6 22 29 34 36 27 58 Greatest Support 92 | 16 10 10 40 74 92 92 50 70 Greatest Overweight (x) 2 | 1 . . 2 . . . . 2 Average Overweight (x) . | . . . . . . . . . Largest Inventory Capacity 8 | 8 5 5 5 5 5 5 5 5 Average Capacity 5 | 5 5 5 5 5 5 5 5 5 Most Carried 5 | 3 5 4 5 5 5 5 5 5 Average Carried 3 | 1 4 4 2 4 4 4 4 2 Final Capacity 5 | 5 5 5 5 5 5 5 5 5 Final Carried 5 | 3 4 4 5 4 5 5 3 5 Transmogrified Parts 68 | . . . 15 12 7 17 7 10 Integrity Recovered 1277 | . . . 222 117 350 99 332 157 Class Distribution -------------------- 69% | Mutant 17% | Tank 11% | Gunner Dominant Class ---------------- Mutant | -10/Materials Mutant | -10/Mines Mutant | -10/Subcaves Mutant | -8/Materials Mutant | -7/Factory Gunner | -7/Lower Caves Mutant | -7/Lower Caves Tank | -6/Factory Resources | -11 -10 -10 -10 -8 -7 -7 -7 -6 ----------- Run | Yrd Mat Min Sub Mat Fac Low Low Fac Matter Collected 1966 | 242 43 35 462 212 182 268 149 373 Remotely 217 | . . . . . 182 35 . . Salvage Created 2661 | 156 69 . 355 684 171 269 292 665 Parts 145 | 14 4 . 21 38 11 15 12 30 Haulers Intercepted 2 | . . . . 1 . . . 1 Recyclers Shooed 1 | . . . . . . . . 1 Parts Field Recycled . | . . . . . . . . . Retrieved Matter . | . . . . . . . . . Parts Self-Destructed 29 | . . . 6 . . 12 11 . Prevented . | . . . . . . . . . Parts Restored . | . . . . . . . . . Kills | -11 -10 -10 -10 -8 -7 -7 -7 -6 ------- Run | Yrd Mat Min Sub Mat Fac Low Low Fac Combat Hostiles Destroyed 52 | . . . 8 15 3 10 5 11 Melee 2 | . . . . 1 . . . 1 Guns 29 | . . . 5 7 2 5 4 6 Cannons 6 | . . . 2 . 1 . . 3 AOE 12 | . . . . 7 . 5 . . Classes Destroyed 16 | 3 . . 3 4 1 1 2 2 Worker 5 | 2 1 . . 2 . . . . Builder 2 | . . . . . 1 . . 1 Tunneler 5 | 2 2 . . 1 . . . . Hauler 2 | . . . . 1 . . . 1 Recycler 3 | 1 . . . 2 . . . . Minesweeper 1 | . . . . . . 1 . . Mechanic 1 | . . . . . . . . 1 Watcher 3 | . . . . 2 . . . 1 Swarmer 11 | . . . . 5 . 6 . . Grunt 21 | . . . . 7 2 4 3 5 Duelist 2 | . . . . . . . 1 1 Sentry 5 | . . . 1 3 1 . . . Specialist 2 | . . . . . . . . 2 Programmer 4 | . . . . . . . 1 3 Artisan 2 | . . . 2 . . . . . Subdweller 7 | . . . 7 . . . . . Best Kill Streak 7 | 5 2 . 2 4 2 7 4 3 Combat Bots Only 7 | . . . 2 3 2 7 4 3 Max Kills in Single Turn 6 | 1 1 . 1 2 1 6 2 1 Gunslinging 1 | . . . . . . . 1 . Exploded 5 | . . . . 2 . 5 . . Melee 1 | . . . . 1 . . . 1 Uniques/NPCs Destroyed . | . . . . . . . . . Combat | -11 -10 -10 -10 -8 -7 -7 -7 -6 -------- Run | Yrd Mat Min Sub Mat Fac Low Low Fac Hostile Shots Fired 481 | . . . 65 89 63 81 27 156 Missed 138 | . . . 21 29 15 29 7 37 Hits 343 | . . . 44 60 48 52 20 119 Melee 7 | . . . . . . . 3 4 Projectile 336 | . . . 44 60 48 52 17 115 Critical Strikes 7 | . . . 2 1 . . 2 2 Damage Taken 6027 | . . . 954 902 428 696 360 2687 Core 1342 | . . . 178 90 55 40 129 850 Absorbed by Shields 4 | . . . 4 . . . . . Redirected to Shielding 41 | . . . . 8 9 . . 24 Ignored by Resistances 115 | . . . . 56 38 17 . 4 Regen/Repaired (Parts) 13 | . 13 . . . . . . . Core Remaining (%) 69 | 100 . . 28 83 . . 68 . Volleys Fired 242 | 27 7 7 80 40 15 15 16 35 Largest 4 | 1 1 1 2 2 3 3 3 4 Hottest 260 | 50 50 50 128 160 160 220 240 260 Shots Fired 423 | 27 7 7 102 67 29 38 39 107 Gun 368 | 27 7 7 85 59 21 35 38 89 Cannon 29 | . . . 7 . 5 2 1 14 Launcher 16 | . . . . 8 3 1 . 4 Special 10 | . . . 10 . . . . . Kinetic 101 | . . . 70 . 5 . . 26 Thermal 240 | 27 7 7 25 58 8 14 39 55 Explosive 16 | . . . . 8 3 1 . 4 Electromagnetic 66 | . . . 7 1 13 23 . 22 Robot Hit Streak 17 | 4 4 1 17 9 5 8 7 7 Robot Miss Streak 12 | 3 1 2 2 12 3 3 2 6 Penetration Max . | . . . . . . . . . Secondary Targets 6 | . . . 1 1 . 1 2 1 Max Gunslinging Chain 1 | . . . 1 1 . 1 1 1 Shots Hit Robots 264 | 16 6 2 53 34 21 24 27 81 Core Hits 165 | 6 3 1 15 38 16 27 9 50 Critical Kills 1 | . . . . . . . 1 . Critical Parts Destroyed 2 | . . . . . . . 2 . Critical Strikes 13 | 2 . . . 2 . . 4 5 Burn 6 | 2 . . . 2 . . 1 1 Destroy 3 | . . . . . . . 3 . Blast 3 | . . . . . . . . 3 Corrupt 1 | . . . . . . . . 1 Melee Attacks 1 | . . . 1 . . . . . Impact 1 | . . . 1 . . . . . Slashing . | . . . . . . . . . Piercing . | . . . . . . . . . Sneak Attacks . | . . . . . . . . . Combat Hostiles . | . . . . . . . . . Follow-up Attacks . | . . . . . . . . . Damage Inflicted 7124 | 177 76 25 946 1657 425 921 674 2223 Guns 4571 | 177 76 25 648 846 259 363 674 1503 Cannons 692 | . . . 207 . 106 30 . 349 Explosions 1739 | . . . . 808 60 528 . 343 Melee 57 | . . . 57 . . . . . Ramming 31 | . . . . 3 . . . 28 Kinetic 1057 | . . . 512 . 106 . . 439 Thermal 3586 | 177 76 25 314 846 85 247 674 1142 Explosive 1708 | . . . . 808 60 497 . 343 Electromagnetic 685 | . . . 63 . 174 177 . 271 Impact 57 | . . . 57 . . . . . Slashing . | . . . . . . . . . Piercing . | . . . . . . . . . Highest Corruption 12 | . . . 12 . 3 3 3 4 Average Corruption 4 | . . . 8 . 3 3 3 2 Corruption Purged . | . . . . . . . . . Corruption Blocked . | . . . . . . . . . Effects 88 | . . . 41 . 1 29 13 4 Message Errors 16 | . . . 8 . . 6 1 1 Matter Fused 29 | . . . 14 . 1 9 3 2 Heat Flow Errors 12 | . . . 6 . . 4 2 . Energy Discharges 10 | . . . 5 . . 4 . 1 Data Loss (minor) 7 | . . . 2 . . 4 1 . Data Loss (major) 5 | . . . 3 . . . 2 . Misfires 5 | . . . 1 . . 1 3 . Alerts 2 | . . . 1 . . . 1 . Misdirections 1 | . . . 1 . . . . . Weapon Failures 1 | . . . . . . 1 . . Overload Shots . | . . . . . . . . . Overflow Damage 129 | . . . 29 80 . 10 . 10 Projectiles . | . . . . . . . . . Explosions 100 | . . . . 80 . 10 . 10 Melee 29 | . . . 29 . . . . . Knockbacks 6 | . . . . . 1 . . 5 Impact 1 | . . . . . . . . 1 Kinetic 5 | . . . . . 1 . . 4 Secondary . | . . . . . . . . . Self-Inflicted Damage 434 | . . . . 223 42 78 . 91 Shots 15 | . . . . 6 2 3 . 4 Rammed 4 | . . . . 2 . . . 2 Targets Rammed 10 | . . . . 2 . . . 8 Kicked 5 | . . . . . . . . 5 Crushed 1 | . . . . . . . . 1 Highest Temperature 858 | 270 60 70 251 357 165 434 847 858 Average Temperature 183 | 136 29 35 63 112 50 122 304 279 Received Heat Transfer 1125 | . . . 273 234 165 78 108 267 Effects 49 | . . . . 4 . . 20 25 Shutdowns 8 | . . . . 1 . . 1 6 Energy Bleed 2 | . . . . . . . . 2 Interference 11 | . . . . 3 . . 4 4 Matter Decay 4 | . . . . . . . 2 2 Short Circuit 6 | . . . . . . . 3 3 Damage (minor) 4 | . . . . . . . 2 2 Damage (major) 11 | . . . . . . . 8 3 Damage (core) 3 | . . . . . . . . 3 Siege Activations . | . . . . . . . . . Martial Activations . | . . . . . . . . . Shielding Activations . | . . . . . . . . . Robots Disrupted . | . . . . . . . . . Combat Hostiles . | . . . . . . . . . Robots Corrupted 1 | . . . 1 . . . . . Combat Hostiles 1 | . . . 1 . . . . . Parts Fried 4 | . . . 4 . . . . . Impact Corruptions 1 | . . . 1 . . . . . Robots Melted 2 | . . . . . . . 1 1 Combat Hostiles 2 | . . . . . . . 1 1 Parts Melted 21 | 3 . . 3 1 . 3 7 4 Heat Transferred 6460 | 666 222 74 544 1332 105 398 1202 1917 Parts Sabotaged 2 | . . . . . . . . 2 Parts Stolen . | . . . . . . . . . Parts Stripped . | . . . . . . . . . Power Chain Reactions 1 | . . . . . . 1 . . Alert | -11 -10 -10 -10 -8 -7 -7 -7 -6 ------- Run | Yrd Mat Min Sub Mat Fac Low Low Fac Maximum Alert Level 1 | . . . . 1 . . . . Low Security (%) 95 | 100 100 100 . 88 100 . . 100 Level 1 4 | . . . . 11 . . . . Level 2 . | . . . . . . . . . Level 3 . | . . . . . . . . . Level 4 . | . . . . . . . . . Level 5 . | . . . . . . . . . High Security . | . . . . . . . . . Max Security . | . . . . . . . . . Peak Influence 289 | 15 10 . . 289 126 . . 78 Initial 126 | . 6 . . . 126 . . . Average 32 | 3 1 . . 54 32 . . 20 Influence Increases 1584 | 25 24 . 20 606 119 230 120 440 Destroy 0b10 Robot/C 900 | . . . 20 300 60 200 100 220 Destroy 0b10 Robot/NC 110 | 25 15 . . 40 5 5 . 20 Destroy Leader 140 | . . . . 56 10 10 20 44 Successful Hack 20 | . 9 . . 11 . . . . Disable Machine 75 | . . . . 75 . . . . Destroy Structure 189 | . . . . 124 44 . . 21 Lose Combat Pursuer 150 | . . . . . . 15 . 135 Influence Decreases 1545 | 15 34 . 20 329 382 197 167 401 Entered New Map 171 | . 4 . . . 151 6 10 . Time Decay 1164 | 15 30 . 20 289 221 171 147 271 Lost Part 210 | . . . . 40 10 20 10 130 Squads Dispatched 7 | . . . . 1 1 . . 5 Investigation . | . . . . . . . . . Extermination 4 | . . . . . 1 . . 3 Reinforcement 3 | . . . . 1 . . . 2 Assault . | . . . . . . . . . Garrison . | . . . . . . . . . Intercept . | . . . . . . . . . Searches Triggered . | . . . . . . . . . Construction Impeded 3 | . . . . 1 . . . 2 Haulers Reinforced . | . . . . . . . . . Active Scanning Responses . | . . . . . . . . . Cargo Convoy Interrupts 1 | . . . . . . . . 1 Stealth | -11 -10 -10 -10 -8 -7 -7 -7 -6 --------- Run | Yrd Mat Min Sub Mat Fac Low Low Fac Distress Signals 1 | . . . . . 1 . . . Communications Jammed . | . . . . . . . . . Distress Signals . | . . . . . . . . . Times Spotted 77 | . . . 10 20 4 11 5 27 Peak Tracking Total 7 | . . . 2 5 3 7 4 6 Tactical Retreats 6 | . . . . . . 1 . 5 Traps | -11 -10 -10 -10 -8 -7 -7 -7 -6 ------- Run | Yrd Mat Min Sub Mat Fac Low Low Fac Traps Triggered 4 | . 1 . . 2 . . . 1 Indirectly . | . . . . . . . . . Trap Hack Attempts . | . . . . . . . . . Triggered . | . . . . . . . . . Disarmed . | . . . . . . . . . Reprogrammed . | . . . . . . . . . Reused . | . . . . . . . . . Traps Extracted . | . . . . . . . . . Installed . | . . . . . . . . . Triggered . | . . . . . . . . . Machines | -11 -10 -10 -10 -8 -7 -7 -7 -6 ---------- Run | Yrd Mat Min Sub Mat Fac Low Low Fac Machines Disabled 6 | . . . 1 5 . . . . Max in Single Turn 2 | . . . 1 2 . . . . Machines Repaired . | . . . . . . . . . Machines Dismantled . | . . . . . . . . . Machines Sabotaged . | . . . . . . . . . Overloaded Fab Kills . | . . . . . . . . . Hacking | -11 -10 -10 -10 -8 -7 -7 -7 -6 --------- Run | Yrd Mat Min Sub Mat Fac Low Low Fac Machines Accessed 11 | . 3 . 1 3 2 1 . 1 Terminals 6 | . 2 . . 2 . 1 . 1 Fabricators . | . . . . . . . . . Repair Stations 1 | . 1 . . . . . . . Recycling Units 1 | . . . . . 1 . . . Scanalyzers 2 | . . . . 1 1 . . . Garrison Access . | . . . . . . . . . Total Hacks 38 | . 4 . 9 10 7 7 . 1 Successful 32 | . 4 . 9 8 4 7 . . Failed 6 | . . . . 2 3 . . 1 Catastrophic 1 | . . . . 1 . . . . Database Lockouts . | . . . . . . . . . Manual 8 | . 2 . . 4 . 1 . 1 Terminals 16 | . 2 . . 6 . 7 . 1 Fabricators . | . . . . . . . . . Repair Stations 2 | . 2 . . . . . . . Recycling Units 4 | . . . . . 4 . . . Scanalyzers 7 | . . . . 4 3 . . . Garrison Access . | . . . . . . . . . Terminal Hacks 17 | . . . 9 1 . 7 . . Record 15 | . . . 8 . . 7 . . Hauler Manifests 1 | . . . . 1 . . . . Proto ID Catalog 1 | . . . 1 . . . . . Fabricator Hacks . | . . . . . . . . . Repair Station Hacks 2 | . 2 . . . . . . . Scan Component 1 | . 1 . . . . . . . Repair 1 | . 1 . . . . . . . Recycling Unit Hacks 3 | . . . . . 3 . . . Retrieve Matter 2 | . . . . . 2 . . . Retrieve Components 1 | . . . . . 1 . . . Scanalyzer 5 | . . . . 4 1 . . . Insert Component 2 | . . . . 1 1 . . . Analyze 2 | . . . . 2 . . . . Retrieve Study 1 | . . . . 1 . . . . Garrison Access Hacks . | . . . . . . . . . Unauthorized Hacks 5 | . 2 . . 3 . . . . Terminals 5 | . 2 . . 3 . . . . Track 4 | . 2 . . 2 . . . . Botnet 1 | . . . . 1 . . . . Fabricators . | . . . . . . . . . Repair Stations . | . . . . . . . . . Recycling Units . | . . . . . . . . . Scanalyzers . | . . . . . . . . . Garrison Access . | . . . . . . . . . Data Cores Recovered . | . . . . . . . . . Used . | . . . . . . . . . Hacking Detections 5 | . . . . 1 2 1 . 1 Full Trace Events . | . . . . . . . . . Feedback Events . | . . . . . . . . . Feedback Blocked . | . . . . . . . . . Robot Schematics Acquired . | . . . . . . . . . Robots Built . | . . . . . . . . . Authchips . | . . . . . . . . . Time . | . . . . . . . . . Total Robot Build Rating . | . . . . . . . . . Part Schematics Acquired 1 | . . . . 1 . . . . Parts Built . | . . . . . . . . . Authchips . | . . . . . . . . . Time . | . . . . . . . . . Total Part Build Rating . | . . . . . . . . . Part Studies Acquired 1 | . . . . 1 . . . . Parts Repaired 1 | . 1 . . . . . . . Time 38 | . 38 . . . . . . . Parts Recycled . | . . . . . . . . . Recycled Matter . | . . . . . . . . . Retrieved Matter . | . . . . . . . . . Retrieved Components 3 | . . . . . 3 . . . Parts Scanalyzed 2 | . . . . 1 1 . . . Part Schematics Acquired 1 | . . . . 1 . . . . Parts Damaged . | . . . . . . . . . Bothacking | -11 -10 -10 -10 -8 -7 -7 -7 -6 ------------ Run | Yrd Mat Min Sub Mat Fac Low Low Fac Used RIF Installer . | . . . . . . . . . Robots Hacked . | . . . . . . . . . Non-combat . | . . . . . . . . . Combat . | . . . . . . . . . Robot Hacks Applied . | . . . . . . . . . Relay Couplers Released . | . . . . . . . . . Fabnet Peak Effective % . | . . . . . . . . . Robots Rewired . | . . . . . . . . . Allies Hacked . | . . . . . . . . . Hacks Repelled . | . . . . . . . . . Allies | -11 -10 -10 -10 -8 -7 -7 -7 -6 -------- Run | Yrd Mat Min Sub Mat Fac Low Low Fac Total Allies . | . . . . . . . . . Largest Group . | . . . . . . . . . Highest-Rated Group . | . . . . . . . . . Highest-Rated Ally . | . . . . . . . . . Total Orders . | . . . . . . . . . Ally Attacks . | . . . . . . . . . Total Damage . | . . . . . . . . . Kills . | . . . . . . . . . Allies Corrupted . | . . . . . . . . . Allies Melted . | . . . . . . . . . Intel | -11 -10 -10 -10 -8 -7 -7 -7 -6 ------- Run | Yrd Mat Min Sub Mat Fac Low Low Fac Active Infowar (turns) 2365 | . 184 150 434 941 610 46 . . Optics 448 | . . . . 448 . . . . Terrain 768 | . 184 150 434 . . . . . Traps 1103 | . . . . 447 610 46 . . Jamming 46 | . . . . 46 . . . . Robot Analysis Total . | . . . . . . . . . Derelict Logs Recovered 2 | . . . 1 . . . 1 . Drone Launches . | . . . . . . . . . Drone Recoveries . | . . . . . . . . . Exploration | -11 -10 -10 -10 -8 -7 -7 -7 -6 ------------- Run | Yrd Mat Min Sub Mat Fac Low Low Fac Turns Passed 7663 | 136 339 150 1666 1379 610 1654 666 1063 Spaces Moved 3696 | 93 165 170 1112 452 204 715 234 551 Core 311 | 38 2 . 119 . . . . 152 Treads 2028 | . . . 379 452 204 715 234 44 Legs 523 | . . . 168 . . . . 355 Wheels 771 | 55 163 170 383 . . . . . Hover 63 | . . . 63 . . . . . Flight . | . . . . . . . . . Fastest Speed 50 | 50 50 80 50 152 155 158 160 50 Average Speed 133 | 73 79 80 124 160 156 162 163 112 Slowest Speed 330 | 100 80 80 250 170 158 170 170 330 Overloaded Moves . | . . . . . . . . . Propulsion Burnouts . | . . . . . . . . . Robots Hopped . | . . . . . . . . . Potential Cave-ins . | . . . . . . . . . Cave-ins Triggered . | . . . . . . . . . Exploration Rate (%) 29 | 4 28 36 57 30 5 85 11 11 Regions Visited 8 Branch Regions 4 Pre-discovered Areas 2 | . . . . . . 2 . . Known Exits Taken 1 | . . . . . . 1 . . Unknown Exits Taken 7 | 1 1 1 1 1 1 . 1 . Scrap Searched 3 | . . 1 . . . 2 . . Spaces Dug 29 | . . . . 29 . . . . Terrain Destroyed 329 | . . . . 224 60 14 . 31 Melee . | . . . . . . . . . Projectile 10 | . . . . 7 2 . . 1 AOE 319 | . . . . 217 58 14 . 30 Terrain Rammed . | . . . . . . . . . Walls Destroyed . | . . . . . . . . . Machines Disabled . | . . . . . . . . . Actions | -11 -10 -10 -10 -8 -7 -7 -7 -6 --------- Run | Yrd Mat Min Sub Mat Fac Low Low Fac Total 6037 | 134 365 176 1287 1035 466 1176 487 911 Wait 1866 | . 179 . 52 502 229 443 223 238 Move 3688 | 92 164 169 1111 451 203 714 233 551 Hop . | . . . . . . . . . Pick Up 93 | 7 8 . 19 16 9 2 6 26 Fast Attach . | . . . . . . . . . Attach 71 | 6 6 . 18 13 5 2 3 18 Detach 21 | 2 . . 2 4 1 . 1 11 Swap 4 | . . . . . . . . 4 Drop 26 | . 1 . 4 7 4 . 5 5 Fire 242 | 27 7 7 80 40 15 15 16 35 Melee 1 | . . . 1 . . . . . Ram . | . . . . . . . . . Kick 5 | . . . . . . . . 5 Crush 5 | . . . . 2 . . . 3 Escape Stasis 15 | . . . . . . . . 15 Rewire . | . . . . . . . . . Trap . | . . . . . . . . . Miscellaneous . | . . . . . . . . . Route ------- -11/Scrapyard -10/Materials (discovered 2 exits: [*Mat] / [*Min]) -10/Mines (discovered 2 exits: [*Mat] / *Sub) -10/Subcaves -8/Materials -7/Factory -7/Lower Caves -7/Lower Caves -6/Factory (discovered 1 exit: Low) History --------- Turn | Location | Event 21 | -11/Scrapyard | Discovered new exit (range 16) 137 | -11/Scrapyard | Entered Materials 248 | -10/Materials | Discovered new exit (range 12) 249 | -10/Materials | Discovered new exit (range 16) 303 | -10/Materials | Build established: Mutant 313 | -10/Materials | Repaired Imp. Terrain Scanner 476 | -10/Materials | Entered Mines 542 | -10/Mines | Discovered new exit (range 12) 610 | -10/Mines | Discovered new exit (range 13) 626 | -10/Mines | Entered Subcaves 647 | -10/Subcaves | Shifting Twisted Machinery released Barrage Gun 679 | -10/Subcaves | Shifting Twisted Machinery released Mak. Power Source 705 | -10/Subcaves | Shifting Twisted Machinery released Mak. Kinetic Plating 801 | -10/Subcaves | Lost 3 parts (2n1w) 836 | -10/Subcaves | Shifting Twisted Machinery released Mak. Sword 1145 | -10/Subcaves | Core integrity fell below 50% 1163 | -10/Subcaves | Lost 3 parts (1p1n1w) 1209 | -10/Subcaves | Visited 4L-MR0's lab 1213 | -10/Subcaves | Found Prototype Device 1214 | -10/Subcaves | Identified Sfc. Transmogrifier 1611 | -10/Subcaves | System corruption reached 10% 1935 | -10/Subcaves | Learned Materials emergency access door positions 1965 | -10/Subcaves | Ambushed by Subdweller buried in earth 2275 | -10/Subcaves | Discovered new exit (range 8) 2292 | -10/Subcaves | Entered Materials 2292 | -8/Materials | Evolved 4 slots: Propulsion x2, Utility x2 2568 | -8/Materials | Found Prototype Launcher 2578 | -8/Materials | Found Prototype Launcher 3313 | -8/Materials | Identified Rocket Array (x2) 3348 | -8/Materials | Lost 3 parts (2p1n) 3526 | -8/Materials | Discovered new exit (range 14) 3671 | -8/Materials | Entered Factory 3671 | -7/Factory | Evolved 2 slots: Utility x1, Weapon x1 4196 | -7/Factory | Discovered new exit (range 16) 4281 | -7/Factory | Entered Lower Caves 4541 | -7/Lower Caves | Attracted the attention of an 0b10 base 4579 | -7/Lower Caves | Destroyed 7 combat bots 4585 | -7/Lower Caves | Learned location of Extension (-4) 4585 | -7/Lower Caves | Identified exit to Lower Caves 4585 | -7/Lower Caves | Learned location of 2 exits from Upper Caves 4585 | -7/Lower Caves | Learned location of 1 exit from Research 4929 | -7/Lower Caves | Spotted B-75 Beast 5096 | -7/Lower Caves | Encountered a Warlord checkpoint 5711 | -7/Lower Caves | Build established: Gunner 5935 | -7/Lower Caves | Entered another Lower Caves area 6016 | -7/Lower Caves | Discovered new exit (range 9) 6111 | -7/Lower Caves | Learned Factory trap positions 6601 | -7/Lower Caves | Entered Factory 6601 | -6/Factory | Evolved 2 slots: Power x1, Weapon x1 6602 | -6/Factory | Identified exit to Lower Caves 6603 | -6/Factory | Loaded intel: 71 trap records 7180 | -6/Factory | Build established: Tank 7379 | -6/Factory | Cargo convoy interrupted 7431 | -6/Factory | Core integrity fell below 50% 7505 | -6/Factory | Core integrity fell below 20% 7527 | -6/Factory | Lost 12 parts (1p3n1u7w) 7664 | -6/Factory | Destroyed by Y-54 Guardian with Gatling Laser Last Messages --------------- 07565_ Field strength at 94. 07612_ System corrupted: Energy discharge (-29). 07626_ Field strength at 88. 07627_ Field strength at 82. 07629_ Field strength at 76. 07630_ Field strength at 70. 07631_ Field strength at 64. 07632_ Field strength at 58. 07633_ Field strength at 52. 07634_ Field strength at 46. 07635_ Field strength at 40. 07636_ Field strength at 34. 07637_ Field strength at 28. 07638_ Field strength at 22. 07639_ Field strength at 16. 07640_ Field strength at 10. 07641_ System corrupted: Matter fused (-10). 07641_ Field strength at 4. 07642_ Stasis field depleted. 07660_ Connecting with Terminal... Map ----- +----------------------------------------------------+ | ??????????????????????????????# #??????????? | | ??????????????????????????????# #??????????? | | ??????????????????????????????# #??????????? | | ??????????????????????????????# #??????????? | | ??????????????????????????????# #??????????? | | ??????????????????????????????# #??????????? | | ??????????????????????######### #??????????? | | ??????????????????????# #??????????? | | ??????????????????????# #??????????? | | ??????????????????????# #??????????? | | ???????????????? #??????????? | | ?????????????????############## #??????????? | | ??????????????????????????????# #??????????? | | ??????????????????????????????# #??????????? | | ??????????????????????????????# #??????????? | | ??????????????????????????????# #??????????? | | ???????????????#?????#######??# #??????????? | | ???????????????? ##### #??# #??????????? | | ????????????????? ???# #??????????? | | ??????????????????? " ?### ###????????? | | ???????????????????? ?# #????????? | | ?????????????????????# ?# #????????? | | ??????????????????????# #?# #????????? | | ??????????????????????# ### T #????????? | | ??????????????????????# #????????? | | ??????????????????????# @### #????????? | | ??????????????????????# #?# #????????? | | ?????????????????????# ?#########????????? | | ?????????????????????# ??????????????????? | | ???????????????????? Y #?????????????????? | | ???????????????????### #?????????????????? | | ?????????????????????# k #?????????????????? | | ?????????????????????###+###?????????????????? | | ?????????????????????????????????????????????? | | ?????????????????????????????????????????????? | | ?????????????????????????????????????????????? | | ?????????????????????????????????????????????? | | ?????????????????????????????????????????????? | | ?????????????????????????????????????????????? | | ?????????????????????????????????????????????? | | ?????????????????????????????????????????????? | | ?????????????????????????????????????????????? | | ?????????????????????????????????????????????? | | ?????????????????????????????????????????????? | | ?????????????????????????????????????????????? | | ?????????????????????????????????????????????? | | ?????????????????????????????????????????????? | | ?????????????????????????????????????????????? | | ?????????????????????????????????????????????? | | ?????????????????????????????????????????????? | +----------------------------------------------------+ Best States ------------- Heat Dissipation 56 Coolant Potential 50 Energy Generation 29 Energy Capacity 1075 Matter Stores 300 Matter Capacity 300 Sight Range 21 Terrain Scan Range 16 Terrain Scan Density 410 Jamming Range 12 Additional Mass Support 12 Armor Coverage 225 Resistance: KI 10 Resistance: TH 15 Resistance: EM 20 Propulsion Shielding 33 Utility Shielding 66 Evasion (%) 55 Targeting Accuracy 6 Target Analysis 5 Recoil Reduction 4 Particle Charging 15 Salvage Targeting 4 Offensive Hacking 11 Defensive Hacking 10 Item Schematics ----------------- Imp. Targeting Computer | -8/Materials | Scanalyzed Robot Schematics ------------------ None Fabricated ------------ Nothing Repaired ---------- Imp. Terrain Scanner | 40% | -10/Materials Studied --------- Adv. Treads | -8/Materials | Hacked Alien Tech Used ----------------- None Achievements -------------- Art Critic Construction Begets Destruction Jackpot Mistaken Identity Quick And Dirty Challenges ------------ None Game ------ Seed SwordFortressWartreads Manual? 0 Play Time 00:53:53 Cumulative 13.7 hours Start 2026.06.27 @ 21:39:16 End 2026.06.27 @ 23:12:31 Sessions 3 Manual Loads 0 Difficulty Rogue Special Mode None Game No. 27 Rogue 27 Adventurer 0 Explorer 0 Win Type - Total 0 Types 0/0/0/0/0/0/0/0/0/0 Lore% 7 Gallery% 19 Achievement% 15 Wizard Run 0 Options --------- Layout 1 ASCII 0 Keyboard 1 Movement Numpad Keybinds 0 Fullscreen 1 Font 24/Smallcaps Map View 50x35 Zoom Use 0% Tactical HUD 1 Map Filters NONE Filters NONE Steam 1 RUN: d48aec64-fcec-486a-8f92-9ac1e1eba8e5